[Event "Elegant 1st Division League 2024"]
[Site "Dhaka"]
[Date "2024.07.12"]
[Round "2.8"]
[White "Saparya Ghosh"]
[Black "Sacchu, Afzal Hossain"]
[Result "0-1"]
[Annotator "RC"]
[ECO "E49"]
[WhiteElo "1833"]
[BlackElo "1981"]
[PlyCount "160"]
[EventDate "2024.07.10"]
[EventType "team-tourn"]
[EventCountry "BAN"]
[SourceTitle "playchess.com"]
[Source "ChessBase"]
[SourceQuality "1"]
[TimeControl "5400+30"]

1. d4 {[%emt 0:01:43]} Nf6 {[%emt 0:00:16]} 2. c4 {[%emt 0:00:05]} e6 {[%emt 0:00:20]} 3. Nc3 {[%emt 0:00:06]} Bb4 {[%emt 0:00:15]} 4. e3 {[%emt 0:00:06]} c5 {[%emt 0:01:09]} 5. a3 {[%emt 0:00:40]} Bxc3+ {[%emt 0:01:02]} 6. bxc3 {[%emt 0:00:10]} O-O {[%emt 0:00:24]} 7. Bd3 {[%emt 0:00:19]} d5 {[%emt 0:00:30]} 8. cxd5 {[%emt 0:01:18]} exd5 {[%emt 0:00:30]} 9. Ne2 {[%emt 0:00:31]} Nc6 {[%emt 0:02:36]} 10. dxc5 {[%emt 0:08:37]} Nd7 {[%emt 0:00:47]} 11. O-O {[%emt 0:06:24]} Nxc5 {[%emt 0:01:09]} 12. Bc2 {[%emt 0:00:58]} b6 {[%emt 0:02:30]} 13. Nf4 {[%emt 0:10:18]} Ba6 {[%emt 0:03:30]} 14. Re1 {[%emt 0:02:52]} Bc4 {[%emt 0:00:10]} 15. Qh5 {[%emt 0:05:42]} g6 {[%emt 0:01:28]} 16. Qh6 {[%emt 0:03:44]} Qf6 {[%emt 0:02:17]} 17. Bb2 {[%emt 0:13:16]} Rfe8 {[%emt 0:02:05]} 18. Rad1 {[%emt 0:11:19]} Rad8 {[%emt 0:01:47]} 19. Nh5 {[%emt 0:09:39]} Qe5 {[%emt 0:00:58]} 20. g4 {[%emt 0:02:58]} Qh8 {[%emt 0:04:55]} 21. Qg5 {[%emt 0:06:56]} Rd6 {[%emt 0:03:55]} 22. Ng3 {[%emt 0:12:24]} Qf6 {[%emt 0:04:13]} 23. Qxf6 {[%emt 0:00:58]} Rxf6 {[%emt 0:00:02]} 24. g5 {[%emt 0:00:53]} Rfe6 {[%emt 0:00:41]} 25. Kg2 {[%emt 0:00:11]} Ne5 {[%emt 0:04:34]} 26. Rd2 {[%emt 0:00:43]} Ned3 {[%emt 0:01:51]} 27. Bxd3 {[%emt 0:00:09]} Nxd3 {[%emt 0:01:34]} 28. Red1 {[%emt 0:00:07]} Nc5 {[%emt 0:01:56]} 29. Rd4 {[%emt 0:00:31]} Nb3 {[%emt 0:01:28]} 30. Rf4 {[%emt 0:00:21]} Nc5 {[%emt 0:01:43]} 31. Rd2 {[%emt 0:00:38]} b5 {[%emt 0:00:30]} 32. h4 {[%emt 0:00:44]} Ra6 {[%emt 0:01:37]} 33. Kh2 {[%emt 0:01:06]} Nd3 {[%emt 0:02:22]} 34. Rd4 {[%emt 0:00:17]} Nxb2 {[%emt 0:00:40]} 35. Rxb2 {[%emt 0:00:01]} Rxa3 {[%emt 0:00:21]} 36. e4 {[%emt 0:00:06]} Rxc3 {[%emt 0:03:48]} 37. exd5 {[%emt 0:01:34]} a5 {[%emt 0:00:03]} 38. Ne4 {[%emt 0:00:12]} Rxe4 {[%emt 0:01:28]} 39. Rxe4 {[%emt 0:00:02]} Rd3 {[%emt 0:01:01]} 40. Re8+ {[%emt 0:00:48]} Kg7 {[%emt 0:01:12]} 41. Rd8 {[%emt 0:00:39]} Rd4 {[%emt 0:02:47]} 42. d6 {[%emt 0:00:33]} a4 {[%emt 0:00:33]} 43. Rb4 {[%emt 0:00:44]} Rxh4+ {[%emt 0:01:16]} 44. Kg3 {[%emt 0:00:06]} Rd4 {[%emt 0:00:10]} 45. d7 {[%emt 0:00:38]} Rd3+ {[%emt 0:02:15]} 46. Kh2 {[%emt 0:00:49]} a3 {[%emt 0:00:15]} 47. Ra8 {[%emt 0:00:24]} a2 {[%emt 0:00:30]} 48. Ra7 {[%emt 0:00:39]} Rxd7 {[%emt 0:00:23]} 49. Ra8 {[%emt 0:00:22]} Rd5 {[%emt 0:01:20]} 50. f4 {[%emt 0:00:31]} Rd1 {[%emt 0:01:00]} 51. Rxc4 {[%emt 0:00:35]} bxc4 {[%emt 0:00:03]} 52. Rxa2 {[%emt 0:00:03]} c3 {[%emt 0:00:36]} 53. Kg3 {[%emt 0:00:10]} Rd2 {[%emt 0:00:17]} 54. Ra8 {[%emt 0:00:06]} h5 {[%emt 0:00:53]} 55. Rc8 {[%emt 0:01:11]} Rd3+ {[%emt 0:00:31]} 56. Kf2 {[%emt 0:00:32]} h4 {[%emt 0:00:15]} 57. Ke2 {[%emt 0:00:19]} Rg3 {[%emt 0:00:55]} 58. Kf2 {[%emt 0:00:07]} Rd3 {[%emt 0:00:48]} 59. Kg2 {[%emt 0:01:23]} h3+ {[%emt 0:00:23]} 60. Kh2 {[%emt 0:00:03]} Rf3 {[%emt 0:00:14]} 61. Rc4 {[%emt 0:00:37]} Kf8 {[%emt 0:00:08]} 62. Rc7 {[%emt 0:00:53]} Ke8 {[%emt 0:00:26]} 63. Rb7 {[%emt 0:00:37]} Rxf4 {[%emt 0:00:21]} 64. Kxh3 {[%emt 0:00:21]} Rc4 {[%emt 0:00:14]} 65. Rb1 {[%emt 0:00:34]} c2 {[%emt 0:00:02]} 66. Rc1 {[%emt 0:00:04]} Kd7 {[%emt 0:00:13]} 67. Kg3 {[%emt 0:00:11]} Ke6 {[%emt 0:00:05]} 68. Kf3 {[%emt 0:00:08]} Kf5 {[%emt 0:00:16]} 69. Ke3 {[%emt 0:00:07]} Kxg5 {[%emt 0:00:11]} 70. Kd3 {[%emt 0:00:16]} Rc7 {[%emt 0:00:09]} 71. Rg1+ {[%emt 0:00:06]} Kh6 {[%emt 0:00:22]} 72. Rh1+ {[%emt 0:00:56]} Kg7 {[%emt 0:00:03]} 73. Rc1 {[%emt 0:00:10]} f5 {[%emt 0:00:03]} 74. Ke3 {[%emt 0:00:59]} Kf6 {[%emt 0:00:05]} 75. Kf3 {[%emt 0:00:35]} Rc3+ {[%emt 0:00:05]} 76. Kf2 {[%emt 0:00:32]} g5 {[%emt 0:00:06]} 77. Ke2 {[%emt 0:00:07]} g4 {[%emt 0:00:06]} 78. Kf2 {[%emt 0:00:09]} Kg5 {[%emt 0:00:04]} 79. Kg2 {[%emt 0:00:16]} f4 {[%emt 0:00:02]} 80. Kf2 {[%emt 0:00:23]} g3+ {[%emt 0:00:04]} 0-1

[Event "Elegant 1st Division League 2024"]
[Site "Dhaka"]
[Date "2024.07.12"]
[Round "2.9"]
[White "Hossain, Monir"]
[Black "Md, Eftekhar Alam"]
[Result "1-0"]
[Annotator "RC"]
[ECO "D45"]
[WhiteElo "1972"]
[BlackElo "2006"]
[PlyCount "113"]
[EventDate "2024.07.10"]
[EventType "team-tourn"]
[EventCountry "BAN"]
[SourceTitle "playchess.com"]
[Source "ChessBase"]
[SourceQuality "1"]
[TimeControl "5400+30"]

1. d4 {[%emt 0:16:00]} d5 {[%emt 0:00:31]} 2. c4 {[%emt 0:03:24]} c6 {[%emt 0:00:41]} 3. Nf3 {[%emt 0:01:02]} Nf6 {[%emt 0:00:44]} 4. Nc3 {[%emt 0:00:12]} e6 {[%emt 0:00:25]} 5. e3 {[%emt 0:02:49]} Nbd7 {[%emt 0:00:45]} 6. Qc2 {[%emt 0:00:19]} Bd6 {[%emt 0:00:38]} 7. Bd2 {[%emt 0:00:18]} O-O {[%emt 0:00:33]} 8. Be2 {[%emt 0:03:37]} b6 {[%emt 0:01:24]} 9. e4 {[%emt 0:01:23]} e5 {[%emt 0:03:06]} 10. cxd5 {[%emt 0:01:19]} cxd5 {[%emt 0:00:26]} 11. exd5 {[%emt 0:04:06]} Bb7 {[%emt 0:01:24]} 12. Bg5 {[%emt 0:03:29]} Rc8 {[%emt 0:02:44]} 13. dxe5 {[%emt 0:01:12]} Nxe5 {[%emt 0:00:19]} 14. O-O {[%emt 0:00:47]} h6 {[%emt 0:07:25]} 15. Bxf6 {[%emt 0:01:29]} Qxf6 {[%emt 0:00:35]} 16. Qd2 {[%emt 0:01:46]} Nc4 {[%emt 0:03:37]} 17. Bxc4 {[%emt 0:02:22]} Rxc4 {[%emt 0:00:12]} 18. a3 {[%emt 0:01:30]} Rg4 {[%emt 0:02:25]} 19. Qe3 {[%emt 0:01:23]} Bc5 {[%emt 0:01:31]} 20. Qd3 {[%emt 0:04:24]} Ba6 {[%emt 0:01:42]} 21. Qd1 {[%emt 0:07:50]} Qg6 {[%emt 0:02:01]} 22. g3 {[%emt 0:03:42]} Bxf1 {[%emt 0:02:54]} 23. Kxf1 {[%emt 0:00:11]} Re8 {[%emt 0:02:40]} 24. Kg2 {[%emt 0:02:27]} Qf6 {[%emt 0:04:16]} 25. Rc1 {[%emt 0:01:00]} h5 {[%emt 0:03:50]} 26. Rc2 {[%emt 0:00:52]} h4 {[%emt 0:06:56]} 27. b4 {[%emt 0:00:56]} Bd6 {[%emt 0:04:24]} 28. Qd3 {[%emt 0:01:31]} hxg3 {[%emt 0:01:14]} 29. hxg3 {[%emt 0:00:45]} Qg6 {[%emt 0:03:48]} 30. Qxg6 {[%emt 0:01:39]} Rxg6 {[%emt 0:00:20]} 31. Nb5 {[%emt 0:00:51]} Bb8 {[%emt 0:00:38]} 32. Rd2 {[%emt 0:00:21]} a6 {[%emt 0:00:25]} 33. Nbd4 {[%emt 0:00:07]} Rd6 {[%emt 0:07:36]} 34. Nc6 {[%emt 0:00:40]} f6 {[%emt 0:01:07]} 35. Nh4 {[%emt 0:01:14]} Rd7 {[%emt 0:01:49]} 36. a4 {[%emt 0:01:15]} b5 {[%emt 0:02:04]} 37. axb5 {[%emt 0:00:48]} axb5 {[%emt 0:00:15]} 38. Nf5 {[%emt 0:01:34]} g6 {[%emt 0:00:58]} 39. Ne3 {[%emt 0:01:39]} Ba7 {[%emt 0:01:50]} 40. Ng4 {[%emt 0:00:30]} Kg7 {[%emt 0:02:03]} 41. Ra2 {[%emt 0:00:25]} Bb6 {[%emt 0:01:45]} 42. Ra6 {[%emt 0:00:45]} Rb7 {[%emt 0:12:28]} 43. Kf3 {[%emt 0:03:44]} Bc7 {[%emt 0:02:07]} 44. Ne3 {[%emt 0:00:55]} f5 {[%emt 0:00:41]} 45. Nd4 {[%emt 0:00:41]} Kf7 {[%emt 0:01:59]} 46. Ne6 {[%emt 0:01:04]} Bb6 {[%emt 0:00:45]} 47. Ng2 {[%emt 0:01:12]} Bd8 {[%emt 0:03:21]} 48. Ngf4 {[%emt 0:00:49]} Bf6 {[%emt 0:02:49]} 49. Nc5 {[%emt 0:01:16]} Rc7 {[%emt 0:03:17]} 50. d6 {[%emt 0:00:20]} Rxc5 {[%emt 0:03:28]} 51. bxc5 {[%emt 0:00:15]} g5 {[%emt 0:00:16]} 52. Ra7+ {[%emt 0:00:16]} Kg8 {[%emt 0:00:10]} 53. Nd5 {[%emt 0:00:45]} Bd4 {[%emt 0:00:20]} 54. Rc7 {[%emt 0:01:02]} g4+ {[%emt 0:00:42]} 55. Kf4 {[%emt 0:00:32]} Re5 {[%emt 0:00:58]} 56. Nf6+ {[%emt 0:00:43]} Kf8 {[%emt 0:00:38]} 57. Nd7+ {[%emt 0:00:15]} 1-0

[Event "Elegant 1st Division League 2024"]
[Site "Dhaka"]
[Date "2024.07.12"]
[Round "2.10"]
[White "Mahindrakar Indrajeet"]
[Black "Hossain, Alamgir"]
[Result "1-0"]
[Annotator "RC"]
[ECO "C26"]
[WhiteElo "2129"]
[BlackElo "1974"]
[PlyCount "79"]
[EventDate "2024.07.10"]
[EventType "team-tourn"]
[EventCountry "BAN"]
[SourceTitle "playchess.com"]
[Source "ChessBase"]
[SourceQuality "1"]
[TimeControl "5400+30"]

1. e4 {[%emt 0:00:16]} Nc6 {[%emt 0:01:06]} 2. Nc3 {[%emt 0:00:30]} e5 {[%emt 0:00:30]} 3. g3 {[%emt 0:00:30]} Nf6 {[%emt 0:00:30]} 4. Bg2 {[%emt 0:00:30]} Bc5 {[%emt 1:30:24]} 5. h3 {[%emt 0:14:58]} h6 {[%emt 0:00:00]} 6. Nge2 {[%emt 0:00:28]} g5 {[%emt 0:00:00]} 7. Na4 {[%emt 0:09:36]} Bb4 {[%emt 0:00:00]} 8. a3 {[%emt 0:05:21]} Bf8 {[%emt 0:00:00]} 9. d4 {[%emt 0:03:25]} d6 {[%emt 0:00:00]} 10. Be3 {[%emt 0:07:44]} Bd7 {[%emt 0:00:00]} 11. Nac3 {[%emt 0:02:10]} Bg7 {[%emt 0:00:00]} 12. Qd2 {[%emt 0:03:20]} Na5 {[%emt 0:00:00]} 13. Qd3 {[%emt 0:04:35]} b5 {[%emt 0:00:00]} 14. dxe5 {[%emt 0:08:02]} dxe5 {[%emt 0:00:00]} 15. Nxb5 {[%emt 0:00:47]} Qb8 {[%emt 0:00:00]} 16. Nbc3 {[%emt 0:01:11]} Qxb2 {[%emt 0:00:00]} 17. O-O {[%emt 0:01:29]} Qb8 {[%emt 0:00:00]} 18. f4 {[%emt 0:03:57]} gxf4 {[%emt 0:00:00]} 19. gxf4 {[%emt 0:00:08]} Nc6 {[%emt 0:00:00]} 20. Bc5 {[%emt 0:05:31]} Rg8 {[%emt 0:00:00]} 21. fxe5 {[%emt 0:02:18]} Nxe5 {[%emt 0:08:30]} 22. Qg3 {[%emt 0:00:42]} Nh7 {[%emt 0:00:30]} 23. Nf4 Qd8 {[%emt 0:00:00]} 24. Nfd5 {[%emt 0:13:54]} Ng5 {[%emt 0:00:00]} 25. Be7 {[%emt 0:00:30]} Qc8 {[%emt 0:00:00]} 26. Bf6 {[%emt 0:00:30]} Nc4 {[%emt 0:00:00]} 27. Kh1 {[%emt 0:00:30]} Bxh3 {[%emt 0:00:00]} 28. Bxh3 {[%emt 0:00:30]} Qxh3+ {[%emt 0:00:00]} 29. Qxh3 {[%emt 0:07:38]} Nxh3 {[%emt 0:00:07]} 30. Bxg7 {[%emt 0:00:57]} O-O-O {[%emt 0:01:46]} 31. Ne7+ {[%emt 0:01:09]} Kb7 {[%emt 0:00:19]} 32. Rab1+ {[%emt 0:00:45]} Ka8 {[%emt 0:00:53]} 33. Nxg8 {[%emt 0:00:10]} Rxg8 {[%emt 0:00:43]} 34. Nd5 {[%emt 0:00:41]} Nb6 {[%emt 0:00:59]} 35. Nxb6+ {[%emt 0:00:20]} axb6 {[%emt 0:00:03]} 36. Rxf7 {[%emt 0:00:10]} Kb7 {[%emt 0:00:11]} 37. Be5 {[%emt 0:01:30]} Rc8 {[%emt 0:00:18]} 38. Bg3 {[%emt 0:00:34]} Ng5 {[%emt 0:00:11]} 39. Re7 {[%emt 0:00:14]} Kc6 {[%emt 0:00:36]} 40. Rb3 {[%emt 0:00:30]} 1-0

[Event "Elegant 1st Division League 2024"]
[Site "Dhaka"]
[Date "2024.07.12"]
[Round "2.11"]
[White "Hossain, Delwar"]
[Black "Md Aminul Islam"]
[Result "1-0"]
[Annotator "RC"]
[ECO "B22"]
[WhiteElo "1959"]
[BlackElo "1960"]
[PlyCount "57"]
[EventDate "2024.07.10"]
[EventType "team-tourn"]
[EventCountry "BAN"]
[SourceTitle "playchess.com"]
[Source "ChessBase"]
[SourceQuality "1"]
[TimeControl "5400+30"]

1. c4 {[%emt 0:03:22]} c6 {[%emt 0:00:14]} 2. e4 {[%emt 0:00:15]} d5 {[%emt 0:00:10]} 3. cxd5 {[%emt 0:00:59]} cxd5 {[%emt 0:00:05]} 4. e5 {[%emt 0:00:27]} Nc6 {[%emt 0:02:52]} 5. d4 {[%emt 0:01:35]} Bf5 {[%emt 0:01:09]} 6. Nc3 {[%emt 0:01:00]} e6 {[%emt 0:00:41]} 7. Bb5 {[%emt 0:06:34]} Nge7 {[%emt 0:00:45]} 8. Nge2 {[%emt 0:00:20]} a6 {[%emt 0:02:18]} 9. Bxc6+ {[%emt 0:03:03]} Nxc6 {[%emt 0:00:03]} 10. O-O {[%emt 0:01:04]} Be7 {[%emt 0:04:22]} 11. Ng3 {[%emt 0:01:37]} Bg6 {[%emt 0:00:11]} 12. f4 {[%emt 0:02:26]} Bh4 {[%emt 0:15:53]} 13. f5 {[%emt 0:01:03]} Bxg3 {[%emt 0:00:03]} 14. fxg6 {[%emt 0:00:34]} Bxh2+ {[%emt 0:00:02]} 15. Kxh2 {[%emt 0:00:49]} hxg6+ {[%emt 0:00:03]} 16. Kg1 {[%emt 0:00:46]} Qb6 {[%emt 0:11:23]} 17. Be3 {[%emt 0:01:04]} Nxe5 {[%emt 0:12:52]} 18. Na4 {[%emt 0:04:15]} Qa7 {[%emt 0:00:17]} 19. Nc5 {[%emt 0:02:29]} Nc4 {[%emt 0:01:38]} 20. Qf3 {[%emt 0:00:55]} b6 {[%emt 0:01:45]} 21. Nd3 {[%emt 0:00:58]} Rh5 {[%emt 0:11:30]} 22. b3 {[%emt 0:02:12]} Rf5 {[%emt 0:01:42]} 23. Qg3 {[%emt 0:00:49]} Nxe3 {[%emt 0:00:13]} 24. Qxe3 {[%emt 0:00:43]} Rc8 {[%emt 0:02:53]} 25. Rfc1 {[%emt 0:04:17]} Rxc1+ {[%emt 0:04:00]} 26. Rxc1 {[%emt 0:01:01]} a5 {[%emt 0:01:05]} 27. Ne5 {[%emt 0:00:53]} Qa6 {[%emt 0:01:29]} 28. Qc3 {[%emt 0:00:51]} b5 {[%emt 0:03:57]} 29. Qc7 {[%emt 0:00:28]} 1-0

[Event "Elegant 1st Division League 2024"]
[Site "Dhaka"]
[Date "2024.07.12"]
[Round "2.12"]
[White "Majumder Shrayan"]
[Black "Khan, Monir Hossain"]
[Result "1-0"]
[Annotator "RC"]
[ECO "E73"]
[WhiteElo "2083"]
[BlackElo "1928"]
[PlyCount "68"]
[EventDate "2024.07.10"]
[EventType "team-tourn"]
[EventCountry "BAN"]
[SourceTitle "playchess.com"]
[Source "ChessBase"]
[SourceQuality "1"]
[TimeControl "5400+30"]

1. d4 {[%emt 0:00:23]} Nf6 {[%emt 0:00:11]} 2. c4 {[%emt 0:00:12]} d6 {[%emt 0:00:12]} 3. Nc3 {[%emt 0:00:16]} g6 {[%emt 0:00:08]} 4. e4 {[%emt 0:00:11]} Bg7 {[%emt 0:00:02]} 5. Be2 {[%emt 0:00:07]} Nbd7 {[%emt 0:00:37]} 6. Be3 {[%emt 0:02:11]} e5 {[%emt 0:00:09]} 7. d5 {[%emt 0:01:07]} a5 {[%emt 0:00:02]} 8. g4 {[%emt 0:04:30]} h5 {[%emt 0:00:06]} 9. g5 {[%emt 0:00:17]} Nh7 {[%emt 0:00:36]} 10. h4 {[%emt 0:02:00]} Nc5 {[%emt 0:00:08]} 11. Qd2 {[%emt 0:06:45]} b6 {[%emt 0:00:19]} 12. f3 {[%emt 0:04:05]} Nf8 {[%emt 0:00:49]} 13. Nh3 {[%emt 0:01:58]} Bxh3 {[%emt 0:12:31]} 14. Rxh3 {[%emt 0:00:12]} Nfd7 {[%emt 0:00:02]} 15. Rg3 {[%emt 0:03:26]} Qe7 {[%emt 0:05:50]} 16. b3 {[%emt 0:06:41]} Nb8 {[%emt 0:00:41]} 17. Rb1 {[%emt 0:00:10]} Nba6 {[%emt 0:00:10]} 18. a3 {[%emt 0:02:20]} Nb8 {[%emt 0:09:07]} 19. b4 {[%emt 0:09:40]} axb4 {[%emt 0:01:18]} 20. axb4 {[%emt 0:00:08]} Nb7 {[%emt 0:05:06]} 21. Qb2 {[%emt 0:05:47]} O-O {[%emt 0:00:08]} 22. Ra1 {[%emt 0:01:58]} Rxa1+ {[%emt 0:17:50]} 23. Qxa1 {[%emt 0:00:20]} Nd7 {[%emt 0:06:25]} 24. Qa7 {[%emt 0:20:32]} Rb8 {[%emt 0:01:10]} 25. c5 {[%emt 0:02:04]} dxc5 {[%emt 0:24:39]} 26. Bb5 {[%emt 0:00:24]} Nd8 {[%emt 0:07:11]} 27. Qxc7 {[%emt 0:17:55]} Rb7 {[%emt 0:01:08]} 28. d6 {[%emt 0:00:06]} Qe8 {[%emt 0:00:12]} 29. Ba6 {[%emt 0:03:32]} Rb8 {[%emt 0:04:27]} 30. Bb5 {[%emt 0:03:40]} Rb7 {[%emt 0:00:01]} 31. Nd5 {[%emt 0:00:20]} Rxc7 {[%emt 0:01:04]} 32. dxc7 {[%emt 0:00:06]} Ne6 {[%emt 0:00:31]} 33. c8=Q {[%emt 0:00:06]} Qd8 {[%emt 0:04:10]} 34. Qb8 Qc8 {[%emt 0:00:00]} 1-0

[Event "Elegant 1st Division League 2024"]
[Site "Dhaka"]
[Date "2024.07.12"]
[Round "2.13"]
[White "Choudhury, Zahid"]
[Black "Sajib, Das"]
[Result "1-0"]
[Annotator "NA RC"]
[ECO "C89"]
[WhiteElo "1838"]
[BlackElo "1894"]
[PlyCount "85"]
[EventDate "2024.07.10"]
[EventType "team-tourn"]
[EventCountry "BAN"]
[SourceTitle "playchess.com"]
[Source "ChessBase"]
[SourceQuality "1"]
[TimeControl "5400+30"]

1. e4 {[%emt 0:00:26]} e5 {[%emt 0:00:12]} 2. Nf3 {[%emt 0:00:10]} Nc6 {[%emt 0:00:07]} 3. Bb5 {[%emt 0:00:13]} a6 {[%emt 0:00:11]} 4. Ba4 {[%emt 0:00:18]} Nf6 {[%emt 0:00:12]} 5. O-O {[%emt 0:00:19]} Be7 {[%emt 0:00:29]} 6. Re1 {[%emt 0:00:12]} b5 {[%emt 0:00:09]} 7. Bb3 {[%emt 0:00:11]} O-O {[%emt 0:00:13]} 8. c3 {[%emt 0:03:15]} d5 {[%emt 0:00:22]} 9. exd5 {[%emt 0:00:02]} Nxd5 {[%emt 0:00:13]} 10. Nxe5 {[%emt 0:00:12]} Nxe5 11. Rxe5 {[%emt 0:00:02]} c6 {[%emt 0:00:41]} 12. d4 {[%emt 0:00:03]} Bd6 {[%emt 0:00:32]} 13. Re1 {[%emt 0:00:02]} Qh4 {[%emt 0:00:26]} 14. g3 {[%emt 0:00:16]} Qh3 {[%emt 0:02:27]} 15. Be3 {[%emt 0:00:11]} Bg4 {[%emt 0:00:34]} 16. Qd3 {[%emt 0:00:24]} Bf3 {[%emt 0:07:18] C89: Closed Ruy Lopez: Marshall Attack.} 17. Qf1 {[%emt 0:00:24]} Qh5 {[%emt 0:04:13]} 18. Nd2 {[%emt 0:00:42]} Bg4 {[%emt 0:01:12]} 19. f3 {[%emt 0:01:54]} Bh3 {[%emt 0:02:18]} 20. Qf2 {[%emt 0:09:50]} f5 {[%emt 0:03:44]} 21. f4 {[%emt 0:07:58]} Kh8 {[%emt 0:06:05]} 22. Bxd5 {[%emt 0:01:23]} cxd5 {[%emt 0:01:20]} 23. Nf3 {[%emt 0:03:08]} Rae8 {[%emt 0:04:24]} 24. Ne5 {[%emt 0:01:52]} Bg4 {[%emt 0:10:04]} (24... Rc8 $16 25. Qe2 Qe8) 25. a4 {[%emt 0:09:11]} Bxe5 {[%emt 0:10:20]} 26. dxe5 {[%emt 0:01:48]} Re6 {[%emt 0:03:32]} 27. axb5 {[%emt 0:01:15]} axb5 {[%emt 0:00:40]} 28. Bd4 {[%emt 0:01:54]} g5 {[%emt 0:10:03]} 29. Ra7 {[%emt 0:01:13]} Bf3 {[%emt 0:05:28]} 30. fxg5 {[%emt 0:06:35]} f4 {[%emt 0:01:32]} (30... Kg8 $142 31. Rea1 Be4) 31. Rea1 {[%emt 0:03:50]} fxg3 {[%emt 0:03:46]} 32. Qxg3 {[%emt 0:06:17]} Be4 {[%emt 0:08:06]} 33. Ra8 $18 {[%emt 0:06:03]} Rxa8 {[%emt 0:08:01]} 34. Rxa8+ {[%emt 0:00:27]} Kg7 {[%emt 0:00:06]} 35. Qf4 {[%emt 0:29:17]} Qd1+ {[%emt 0:00:38]} 36. Kf2 {[%emt 0:00:19]} Qc2+ {[%emt 0:01:47]} 37. Kg3 {[%emt 0:02:45]} Bf5 {[%emt 0:02:14]} 38. h4 {[%emt 0:01:52]} h5 {[%emt 0:01:34]} 39. gxh6+ {[%emt 0:01:31]} Kf7 {[%emt 0:04:47]} 40. h5 {[%emt 0:00:23]} Qd3+ {[%emt 0:00:00]} 41. Be3 {[%emt 0:00:14]} d4 {[%emt 0:00:00]} 42. Qxd4 {[%emt 0:00:34]} Qe2 {[%emt 0:00:50]} 43. Qd7+ {[%emt 0:00:51]} 1-0

[Event "Elegant 1st Division League 2024"]
[Site "Dhaka"]
[Date "2024.07.12"]
[Round "2.14"]
[White "Mohammad, Shakil"]
[Black "Mirza Arifur, Rahman"]
[Result "1-0"]
[Annotator "NA RC"]
[ECO "A56"]
[WhiteElo "1882"]
[BlackElo "1823"]
[PlyCount "99"]
[EventDate "2024.07.10"]
[EventType "team-tourn"]
[EventCountry "BAN"]
[SourceTitle "playchess.com"]
[Source "ChessBase"]
[SourceQuality "1"]
[TimeControl "5400+30"]

1. d4 {[%emt 0:00:37]} c5 {[%emt 0:01:40]} 2. d5 {[%emt 0:00:13]} d6 {[%emt 0:00:19]} 3. c4 {[%emt 0:01:29]} Nf6 {[%emt 0:00:18]} 4. Nc3 {[%emt 0:00:04]} g6 {[%emt 0:00:08]} 5. Nf3 {[%emt 0:00:12]} Bg7 {[%emt 0:00:02]} 6. Nd2 {[%emt 0:00:39] A56: Czech Benoni.} a6 {[%emt 0:02:16]} 7. a4 {[%emt 0:00:06]} e5 {[%emt 0:00:47]} 8. e4 {[%emt 0:02:18]} Nbd7 {[%emt 0:00:15]} 9. Be2 {[%emt 0:01:13]} O-O {[%emt 0:00:20]} 10. Qc2 {[%emt 0:04:30]} Ne8 {[%emt 0:00:56]} 11. g4 {[%emt 0:04:17]} f6 {[%emt 0:05:41]} 12. h4 {[%emt 0:07:10]} Rf7 {[%emt 0:00:14]} 13. Nf1 {[%emt 0:02:09]} Nf8 {[%emt 0:00:16]} 14. Ng3 {[%emt 0:00:23]} Nc7 {[%emt 0:00:33]} 15. h5 {[%emt 0:02:55]} g5 {[%emt 0:01:28]} 16. O-O {[%emt 0:10:25]} h6 {[%emt 0:07:56]} 17. Bd2 {[%emt 0:03:51]} b6 {[%emt 0:02:55]} 18. a5 {[%emt 0:08:47]} bxa5 {[%emt 0:00:58]} 19. Rxa5 {[%emt 0:00:16]} Rb8 {[%emt 0:00:42]} 20. Rfa1 {[%emt 0:02:01]} Na8 {[%emt 0:00:24]} 21. Nf5 {[%emt 0:00:48]} Rb4 {[%emt 0:05:22] [#]} 22. Nb5 $1 {[%emt 0:02:52]} axb5 {[%emt 0:13:37]} 23. Bxb4 {[%emt 0:01:04]} Nb6 {[%emt 0:54:53]} 24. Bd2 {[%emt 0:01:23]} Bxf5 {[%emt 0:00:00]} 25. exf5 {[%emt 0:00:50]} b4 {[%emt 0:00:00]} 26. Qb1 {[%emt 0:03:06]} Rb7 {[%emt 0:00:00]} 27. Ra7 {[%emt 0:00:47]} Rb8 {[%emt 0:00:00]} 28. Qa2 {[%emt 0:01:20]} Nfd7 {[%emt 0:00:00]} 29. Qb1 {[%emt 0:04:52]} Bf8 {[%emt 0:00:00]} 30. Qe4 {[%emt 0:01:38]} Be7 {[%emt 0:00:00]} 31. Bd1 {[%emt 0:00:14]} Kf8 {[%emt 0:00:00]} 32. Ba4 {[%emt 0:00:34]} Nxa4 {[%emt 0:00:00]} 33. R1xa4 {[%emt 0:00:12]} Nb6 {[%emt 0:00:00]} 34. Ra1 {[%emt 0:01:23]} Kg8 {[%emt 0:00:00]} 35. b3 {[%emt 0:00:09]} Kf8 {[%emt 0:00:00]} 36. Kg2 {[%emt 0:00:15]} Ke8 {[%emt 0:00:00]} 37. Kf3 {[%emt 0:00:04]} Kf8 {[%emt 0:00:00]} 38. R1a6 {[%emt 0:00:41]} Ke8 {[%emt 0:00:00]} 39. Qb1 {[%emt 0:00:08]} Nc8 {[%emt 0:00:00]} 40. Ra8 {[%emt 0:00:37]} Nb6 {[%emt 0:00:00]} 41. Rxb8 {[%emt 0:00:35]} Qxb8 {[%emt 0:00:00]} 42. Qa2 {[%emt 0:01:28]} Bd8 {[%emt 0:00:00]} 43. Ra7 {[%emt 0:00:42]} Bc7 {[%emt 0:00:00]} 44. Qa6 {[%emt 0:00:33]} Kd8 {[%emt 0:00:00]} 45. Rb7 {[%emt 0:01:42]} Qa8 {[%emt 0:00:00]} 46. Rxb6 {[%emt 0:00:26]} Qxa6 {[%emt 0:00:00]} 47. Rxa6 {[%emt 0:00:02]} Kc8 {[%emt 0:00:00]} 48. Ra8+ {[%emt 0:01:11]} Bb8 {[%emt 0:00:00]} 49. Rxb8+ {[%emt 0:01:11]} Kxb8 {[%emt 0:00:00] [#]} 50. Bxg5 {[%emt 0:00:03]} 1-0